[Event "*** Titled Tuesday Blitz AM"]
[Site "Chess.com"]
[Date "2020.01.07"]
[Round "7"]
[White "Ba_clbaf_osed_ingo_3v21"]
[Black "LogoCzar"]
[Result "1-0"]
[WhiteElo "2552"]
[BlackElo "2392"]
[TimeControl "180+2"]
[EndTime "10:34:17 PST"]
[Termination "Ba_clbaf_osed_ingo_3v21 won by resignation"]

1. Nf3 {[%clk 0:03:01.9]} 1... c5 {[%clk 0:03:00.7]} 2. c4 {[%clk 0:03:03.5]}
2... Nf6 {[%clk 0:03:01.7]} 3. Nc3 {[%clk 0:03:05.4]} 3... e6 {[%clk 0:03:02.7]}
4. g3 {[%clk 0:03:04.3]} 4... b6 {[%clk 0:03:04]} 5. Bg2 {[%clk 0:03:05.2]} 5...
Bb7 {[%clk 0:03:05.5]} 6. O-O {[%clk 0:03:06.4]} 6... Be7 {[%clk 0:03:06.4]} 7.
d4 {[%clk 0:03:07.3]} 7... cxd4 {[%clk 0:03:07.5]} 8. Qxd4 {[%clk 0:03:09.2]}
8... d6 {[%clk 0:03:07.8]} 9. Rd1 {[%clk 0:03:08.4]} 9... a6 {[%clk 0:03:08.6]}
10. Bg5 {[%clk 0:02:48.7]} 10... Nbd7 {[%clk 0:03:09]} 11. Nd2 {[%clk
0:02:47.1]} 11... Bxg2 {[%clk 0:03:08.8]} 12. Kxg2 {[%clk 0:02:49]} 12... Qc7
{[%clk 0:03:07.2]} 13. Nde4 {[%clk 0:02:45.7]} 13... Qc6 {[%clk 0:03:04.3]} 14.
f3 {[%clk 0:02:44.1]} 14... e5 {[%clk 0:02:24.9]} 15. Nxd6+ {[%clk 0:02:38.7]}
15... Kf8 {[%clk 0:02:14.7]} 16. Qd2 {[%clk 0:02:30]} 16... h6 {[%clk
0:02:08.2]} 17. Bxf6 {[%clk 0:02:24.2]} 17... Nxf6 {[%clk 0:02:08.7]} 18. Nf5
{[%clk 0:02:06.9]} 18... Bc5 {[%clk 0:01:58.3]} 19. e4 {[%clk 0:01:42.6]} 19...
g6 {[%clk 0:01:56.2]} 20. Ne3 {[%clk 0:01:42.1]} 20... Bxe3 {[%clk 0:01:55.3]}
21. Qxe3 {[%clk 0:01:42.8]} 21... Qxc4 {[%clk 0:01:55.5]} 22. Qxb6 {[%clk
0:01:38.7]} 22... Kg7 {[%clk 0:01:56.5]} 23. Rac1 {[%clk 0:01:34.5]} 23... Rab8
{[%clk 0:01:54.2]} 24. Qf2 {[%clk 0:01:35.6]} 24... Qb4 {[%clk 0:01:46.7]} 25.
b3 {[%clk 0:01:33.1]} 25... h5 {[%clk 0:01:45.3]} 26. Nd5 {[%clk 0:01:28.7]}
26... Nxd5 {[%clk 0:01:45.9]} 27. Rxd5 {[%clk 0:01:30]} 27... h4 {[%clk
0:01:39.9]} 28. Qc5 {[%clk 0:01:30.4]} 28... hxg3 {[%clk 0:01:33.3]} 29. hxg3
{[%clk 0:01:05.4]} 29... Qxc5 {[%clk 0:01:20.6]} 30. Rcxc5 {[%clk 0:00:57]}
30... f6 {[%clk 0:01:18.8]} 31. Rc7+ {[%clk 0:00:56.6]} 31... Kh6 {[%clk
0:01:19.4]} 32. Rc6 {[%clk 0:00:57.8]} 32... Rbc8 {[%clk 0:01:11.7]} 33. Rdd6
{[%clk 0:00:58]} 33... Rxc6 {[%clk 0:01:05.9]} 34. Rxc6 {[%clk 0:00:59.9]} 34...
Ra8 {[%clk 0:01:05.7]} 35. Rxf6 {[%clk 0:01:00.5]} 35... a5 {[%clk 0:01:06.6]}
36. a4 {[%clk 0:00:59.6]} 36... Rb8 {[%clk 0:01:07.1]} 37. Ra6 {[%clk
0:01:00.9]} 37... Rxb3 {[%clk 0:01:07.7]} 38. Rxa5 {[%clk 0:01:02.2]} 38... Ra3
{[%clk 0:01:08.7]} 39. Rxe5 {[%clk 0:01:02]} 39... Rxa4 {[%clk 0:01:09.8]} 40.
Kh3 {[%clk 0:01:03.3]} 40... Kg7 {[%clk 0:01:06.6]} 41. Kg4 {[%clk 0:01:04.1]}
41... Kf6 {[%clk 0:01:07.3]} 42. Rb5 {[%clk 0:01:05.4]} 42... Ra6 {[%clk
0:01:08.2]} 43. f4 {[%clk 0:01:02.4]} 43... Rc6 {[%clk 0:01:08.7]} 44. e5+
{[%clk 0:01:03]} 44... Kg7 {[%clk 0:01:10]} 45. Kg5 {[%clk 0:01:04]} 45... Re6
{[%clk 0:01:09.8]} 46. Rb7+ {[%clk 0:01:04.3]} 46... Kg8 {[%clk 0:01:09.9]} 47.
g4 {[%clk 0:01:06.2]} 47... Kf8 {[%clk 0:01:07.8]} 48. Rb5 {[%clk 0:00:57.5]}
48... Kg7 {[%clk 0:01:08]} 49. f5 {[%clk 0:00:57.8]} 49... gxf5 {[%clk
0:01:09.3]} 50. gxf5 {[%clk 0:00:59.7]} 50... Re8 {[%clk 0:01:10.9]} 51. Rb7+
{[%clk 0:00:59.8]} 51... Kf8 {[%clk 0:01:11.8]} 52. e6 {[%clk 0:00:58.9]} 52...
Kg8 {[%clk 0:01:12.9]} 53. Kg6 {[%clk 0:00:53.5]} 53... Rc8 {[%clk 0:01:10.8]}
54. f6 {[%clk 0:00:52.7]} 54... Kh8 {[%clk 0:01:11.8]} 55. Rh7+ {[%clk
0:00:52.2]} 55... Kg8 {[%clk 0:01:13]} 56. f7+ {[%clk 0:00:53.6]} 56... Kf8
{[%clk 0:01:14.4]} 57. Rh8+ {[%clk 0:00:55]} 57... Ke7 {[%clk 0:01:15.8]} 58.
Rxc8 {[%clk 0:00:56.4]} 1-0

[Event "*** Titled Tuesday Blitz AM"]
[Site "Chess.com"]
[Date "2020.01.07"]
[Round "7"]
[White "ChessQueen"]
[Black "Sethu0025"]
[Result "0-1"]
[WhiteElo "2661"]
[BlackElo "2802"]
[TimeControl "180+2"]
[EndTime "10:34:30 PST"]
[Termination "Sethu0025 won by resignation"]

1. e4 {[%clk 0:03:01.9]} 1... c5 {[%clk 0:03:00.7]} 2. c3 {[%clk 0:03:02.4]}
2... Nf6 {[%clk 0:03:00.5]} 3. e5 {[%clk 0:03:00.6]} 3... Nd5 {[%clk 0:03:01.7]}
4. d4 {[%clk 0:03:00.6]} 4... cxd4 {[%clk 0:02:58.7]} 5. Nf3 {[%clk 0:03:01.7]}
5... d6 {[%clk 0:02:47.1]} 6. cxd4 {[%clk 0:03:00.8]} 6... Nc6 {[%clk
0:02:46.3]} 7. Bc4 {[%clk 0:03:01]} 7... Nb6 {[%clk 0:02:39.4]} 8. Bb5 {[%clk
0:03:00.8]} 8... e6 {[%clk 0:02:29.4]} 9. O-O {[%clk 0:02:55.3]} 9... Be7 {[%clk
0:02:28.3]} 10. Nc3 {[%clk 0:02:48]} 10... O-O {[%clk 0:02:28.8]} 11. Qe2 {[%clk
0:02:45.4]} 11... Bd7 {[%clk 0:02:18.3]} 12. Bd3 {[%clk 0:02:43.6]} 12... dxe5
{[%clk 0:02:12.1]} 13. dxe5 {[%clk 0:02:36.5]} 13... Nb4 {[%clk 0:02:12.3]} 14.
Bb1 {[%clk 0:02:36.4]} 14... Bc6 {[%clk 0:02:13.3]} 15. Rd1 {[%clk 0:02:28.8]}
15... Qc7 {[%clk 0:02:12.5]} 16. a3 {[%clk 0:02:26.2]} 16... N4d5 {[%clk
0:02:11]} 17. Nxd5 {[%clk 0:02:20]} 17... Bxd5 {[%clk 0:02:08.4]} 18. Ng5 {[%clk
0:02:08.3]} 18... g6 {[%clk 0:02:03.1]} 19. Bf4 {[%clk 0:02:00.2]} 19... Qc4
{[%clk 0:01:38.9]} 20. Qg4 {[%clk 0:01:22.9]} 20... h5 {[%clk 0:01:39.3]} 21.
Qg3 {[%clk 0:01:19.9]} 21... Qe2 {[%clk 0:01:29.3]} 22. Bd3 {[%clk 0:00:30.5]}
22... Qg4 {[%clk 0:01:29.6]} 23. Qxg4 {[%clk 0:00:26.7]} 23... hxg4 {[%clk
0:01:30.8]} 24. Ne4 {[%clk 0:00:24.9]} 24... Kg7 {[%clk 0:01:31.5]} 25. Nc3
{[%clk 0:00:23.1]} 25... Rfc8 {[%clk 0:01:29.4]} 26. Be3 {[%clk 0:00:23.1]}
26... Bc4 {[%clk 0:01:21.2]} 27. Be4 {[%clk 0:00:23.6]} 27... Rc7 {[%clk
0:01:16.1]} 28. Bxb6 {[%clk 0:00:24.1]} 28... axb6 {[%clk 0:01:16.8]} 29. Rd4
{[%clk 0:00:24.1]} 29... Rd8 {[%clk 0:01:04.8]} 30. Rad1 {[%clk 0:00:25.2]}
30... Rxd4 {[%clk 0:01:03.1]} 31. Rxd4 {[%clk 0:00:27.1]} 31... b5 {[%clk
0:00:43.3]} 32. Bb1 {[%clk 0:00:24.9]} 32... Bc5 {[%clk 0:00:41.4]} 33. Rxg4
{[%clk 0:00:25.2]} 33... Rd7 {[%clk 0:00:42.8]} 34. h4 {[%clk 0:00:17.9]} 34...
Rd2 {[%clk 0:00:39.9]} 35. h5 {[%clk 0:00:19.3]} 35... Bxf2+ {[%clk 0:00:24.9]}
36. Kh2 {[%clk 0:00:20.2]} 36... Bd4 {[%clk 0:00:25.9]} 37. hxg6 {[%clk
0:00:19]} 37... Bxe5+ {[%clk 0:00:26.9]} 38. Kh3 {[%clk 0:00:19.6]} 38... f5
{[%clk 0:00:27.7]} 39. Rh4 {[%clk 0:00:18.3]} 39... Rxb2 {[%clk 0:00:28]} 0-1

[Event "*** Titled Tuesday Blitz AM"]
[Site "Chess.com"]
[Date "2020.01.07"]
[Round "7"]
[White "Borsuk_Konstantin"]
[Black "MathiasWomacka"]
[Result "1-0"]
[WhiteElo "2513"]
[BlackElo "2332"]
[TimeControl "180+2"]
[EndTime "10:34:34 PST"]
[Termination "Borsuk_Konstantin won by checkmate"]

1. d4 {[%clk 0:03:01.9]} 1... Nf6 {[%clk 0:02:14.3]} 2. c4 {[%clk 0:03:02.7]}
2... e6 {[%clk 0:02:14.9]} 3. Nc3 {[%clk 0:03:03.5]} 3... Bb4 {[%clk 0:02:15.7]}
4. Qc2 {[%clk 0:03:04.9]} 4... c5 {[%clk 0:02:16.1]} 5. dxc5 {[%clk 0:03:05.7]}
5... O-O {[%clk 0:02:16.9]} 6. a3 {[%clk 0:03:05.5]} 6... Bxc5 {[%clk 0:02:18]}
7. Nf3 {[%clk 0:03:04.6]} 7... b6 {[%clk 0:02:19.1]} 8. Bf4 {[%clk 0:02:58.3]}
8... Bb7 {[%clk 0:02:18.2]} 9. e3 {[%clk 0:02:58.7]} 9... Nc6 {[%clk 0:02:15]}
10. Be2 {[%clk 0:02:51.1]} 10... Rc8 {[%clk 0:02:12.4]} 11. O-O {[%clk
0:02:50.9]} 11... Be7 {[%clk 0:02:12.4]} 12. b4 {[%clk 0:02:40]} 12... Nh5
{[%clk 0:02:05.2]} 13. Rad1 {[%clk 0:02:08.3]} 13... Nxf4 {[%clk 0:01:58.2]} 14.
exf4 {[%clk 0:02:10.2]} 14... g6 {[%clk 0:01:59.5]} 15. Qa4 {[%clk 0:02:05]}
15... a5 {[%clk 0:01:56.2]} 16. Ne5 {[%clk 0:01:48.8]} 16... d6 {[%clk
0:01:56.5]} 17. Bf3 {[%clk 0:01:37.5]} 17... Qe8 {[%clk 0:01:45.3]} 18. Nd3
{[%clk 0:01:13.9]} 18... axb4 {[%clk 0:01:40]} 19. axb4 {[%clk 0:01:14.4]} 19...
d5 {[%clk 0:01:18.2]} 20. cxd5 {[%clk 0:00:54.1]} 20... Nxb4 {[%clk 0:01:18.9]}
21. Qxe8 {[%clk 0:00:42.6]} 21... Rfxe8 {[%clk 0:01:20.8]} 22. d6 {[%clk
0:00:38.6]} 22... Bxf3 {[%clk 0:01:13.4]} 23. d7 {[%clk 0:00:27.5]} 23... Bxd1
{[%clk 0:01:11.3]} 24. Nxb4 {[%clk 0:00:19.2]} 24... Bxb4 {[%clk 0:01:11.5]} 25.
Nxd1 {[%clk 0:00:19.3]} 25... Red8 {[%clk 0:01:02]} 26. dxc8=Q {[%clk
0:00:20.3]} 26... Rxc8 {[%clk 0:01:03.8]} 27. Ne3 {[%clk 0:00:21.2]} 27... Bc5
{[%clk 0:00:59.8]} 28. Rb1 {[%clk 0:00:21.8]} 28... Ra8 {[%clk 0:00:58.9]} 29.
Kf1 {[%clk 0:00:22]} 29... Ra2 {[%clk 0:00:59.2]} 30. Nd1 {[%clk 0:00:11.3]}
30... Kf8 {[%clk 0:00:59.9]} 31. g3 {[%clk 0:00:12]} 31... Ke7 {[%clk 0:01:00]}
32. h3 {[%clk 0:00:12]} 32... h5 {[%clk 0:01:00]} 33. Ne3 {[%clk 0:00:12.5]}
33... Kd6 {[%clk 0:00:56.4]} 34. Nc4+ {[%clk 0:00:13.5]} 34... Kc6 {[%clk
0:00:56.3]} 35. Ne5+ {[%clk 0:00:14.5]} 35... Kd5 {[%clk 0:00:56.7]} 36. Nd3
{[%clk 0:00:14.5]} 36... h4 {[%clk 0:00:34.8]} 37. g4 {[%clk 0:00:10]} 37... Ke4
{[%clk 0:00:31.1]} 38. Rb3 {[%clk 0:00:07.2]} 38... Rd2 {[%clk 0:00:21.1]} 39.
f3+ {[%clk 0:00:08.2]} 39... Kd4 {[%clk 0:00:19.5]} 40. Ne5 {[%clk 0:00:09.3]}
40... Rh2 {[%clk 0:00:17]} 41. Rd3# {[%clk 0:00:09.4]} 1-0

[Event "*** Titled Tuesday Blitz AM"]
[Site "Chess.com"]
[Date "2020.01.07"]
[Round "7"]
[White "lrestevez"]
[Black "Gnechko_Ruslan"]
[Result "0-1"]
[WhiteElo "2122"]
[BlackElo "2472"]
[TimeControl "180+2"]
[EndTime "10:34:35 PST"]
[Termination "Gnechko_Ruslan won by resignation"]

1. e4 {[%clk 0:01:22.4]} 1... d6 {[%clk 0:02:59.2]} 2. d4 {[%clk 0:01:22.8]}
2... g6 {[%clk 0:03:00.4]} 3. Nc3 {[%clk 0:01:24.7]} 3... Bg7 {[%clk 0:03:01.7]}
4. Be3 {[%clk 0:01:24.1]} 4... a6 {[%clk 0:03:03.4]} 5. f3 {[%clk 0:01:25.2]}
5... b5 {[%clk 0:03:04.7]} 6. a4 {[%clk 0:01:26.2]} 6... b4 {[%clk 0:03:05.7]}
7. Nce2 {[%clk 0:01:27.8]} 7... Nd7 {[%clk 0:03:05.9]} 8. Ng3 {[%clk 0:01:27.6]}
8... h5 {[%clk 0:03:04.4]} 9. Bc4 {[%clk 0:01:28]} 9... h4 {[%clk 0:03:05.1]}
10. Nf1 {[%clk 0:01:29]} 10... Bb7 {[%clk 0:02:59.6]} 11. Nd2 {[%clk 0:01:26.9]}
11... c5 {[%clk 0:03:00.4]} 12. Nb3 {[%clk 0:01:27.1]} 12... cxd4 {[%clk
0:02:59.5]} 13. Bxd4 {[%clk 0:01:27.7]} 13... Ngf6 {[%clk 0:02:59.8]} 14. Nh3
{[%clk 0:01:26.1]} 14... Rc8 {[%clk 0:02:54.9]} 15. Bd3 {[%clk 0:01:24.4]} 15...
O-O {[%clk 0:02:33.9]} 16. O-O {[%clk 0:01:22]} 16... e5 {[%clk 0:02:35.1]} 17.
Be3 {[%clk 0:01:21.9]} 17... d5 {[%clk 0:02:36.7]} 18. exd5 {[%clk 0:01:21.5]}
18... Nxd5 {[%clk 0:02:38.6]} 19. Bg5 {[%clk 0:01:20.4]} 19... Qb6+ {[%clk
0:02:33.5]} 20. Kh1 {[%clk 0:01:19.6]} 20... Ne3 {[%clk 0:02:34.9]} 21. Bxe3
{[%clk 0:01:18.3]} 21... Qxe3 {[%clk 0:02:36.8]} 22. Qe1 {[%clk 0:01:16]} 22...
Qxe1 {[%clk 0:02:34.8]} 23. Raxe1 {[%clk 0:01:16.3]} 23... Nc5 {[%clk
0:02:23.8]} 24. Nxc5 {[%clk 0:01:12.8]} 24... Rxc5 {[%clk 0:02:25.7]} 25. Ng5
{[%clk 0:01:09.6]} 25... Rd8 {[%clk 0:02:15.9]} 26. b3 {[%clk 0:01:07.1]} 26...
a5 {[%clk 0:02:03.9]} 27. Bc4 {[%clk 0:01:06.4]} 27... Bd5 {[%clk 0:02:02.5]}
28. Rd1 {[%clk 0:01:05.9]} 28... Bf6 {[%clk 0:01:54.9]} 29. Bxd5 {[%clk
0:01:06.5]} 29... Rcxd5 {[%clk 0:00:24.4]} 30. Rxd5 {[%clk 0:01:05]} 30... Rxd5
{[%clk 0:00:26.3]} 31. Ne4 {[%clk 0:01:05.8]} 31... Be7 {[%clk 0:00:27.2]} 32.
h3 {[%clk 0:00:58.3]} 32... f5 {[%clk 0:00:28.2]} 33. Nf2 {[%clk 0:00:57.9]}
33... Rd2 {[%clk 0:00:29.6]} 34. Nd3 {[%clk 0:00:56.4]} 34... e4 {[%clk
0:00:19.4]} 35. fxe4 {[%clk 0:00:56.4]} 35... fxe4 {[%clk 0:00:21.3]} 36. Nf4
{[%clk 0:00:49.2]} 36... Rxc2 {[%clk 0:00:21.9]} 37. Nxg6 {[%clk 0:00:49.3]}
37... Bd6 {[%clk 0:00:22.5]} 38. Re1 {[%clk 0:00:44.9]} 38... Bg3 {[%clk
0:00:22.4]} 39. Rf1 {[%clk 0:00:38.4]} 39... e3 {[%clk 0:00:23.3]} 40. Ne7+
{[%clk 0:00:27.3]} 40... Kh8 {[%clk 0:00:22.9]} 41. Nf5 {[%clk 0:00:27.2]} 41...
e2 {[%clk 0:00:23.6]} 42. Nxg3 {[%clk 0:00:28.1]} 42... hxg3 {[%clk 0:00:21.8]}
43. Re1 {[%clk 0:00:27.2]} 43... Rd2 {[%clk 0:00:21.4]} 0-1

[Event "*** Titled Tuesday Blitz AM"]
[Site "Chess.com"]
[Date "2020.01.07"]
[Round "7"]
[White "Gogolev_Artemy"]
[Black "TST2014"]
[Result "1-0"]
[WhiteElo "2451"]
[BlackElo "2528"]
[TimeControl "180+2"]
[EndTime "10:34:41 PST"]
[Termination "Gogolev_Artemy won on time"]

1. d4 {[%clk 0:02:44.9]} 1... Nf6 {[%clk 0:02:58.3]} 2. Nf3 {[%clk 0:02:44.8]}
2... g6 {[%clk 0:02:59.1]} 3. g3 {[%clk 0:02:44.6]} 3... Bg7 {[%clk 0:02:59.8]}
4. b3 {[%clk 0:02:43.9]} 4... O-O {[%clk 0:03:00.6]} 5. Bb2 {[%clk 0:02:41.5]}
5... Ne4 {[%clk 0:02:56.3]} 6. Bg2 {[%clk 0:02:42]} 6... d5 {[%clk 0:02:56.9]}
7. O-O {[%clk 0:02:42.6]} 7... c5 {[%clk 0:02:58.1]} 8. Nbd2 {[%clk 0:02:39.8]}
8... Nc6 {[%clk 0:02:57.7]} 9. e3 {[%clk 0:02:30.9]} 9... Qa5 {[%clk 0:02:48]}
10. Nxe4 {[%clk 0:01:51.7]} 10... dxe4 {[%clk 0:02:46.7]} 11. Ne5 {[%clk
0:01:52.7]} 11... cxd4 {[%clk 0:02:31.3]} 12. Nxc6 {[%clk 0:01:51.1]} 12... bxc6
{[%clk 0:02:31.2]} 13. Bxd4 {[%clk 0:01:46.7]} 13... Rd8 {[%clk 0:02:27.7]} 14.
Qe2 {[%clk 0:01:36.1]} 14... Bxd4 {[%clk 0:02:21.4]} 15. exd4 {[%clk 0:01:37]}
15... Rxd4 {[%clk 0:02:12.5]} 16. Bxe4 {[%clk 0:01:37.2]} 16... Qe5 {[%clk
0:02:06.5]} 17. Rfe1 {[%clk 0:01:37.5]} 17... Bb7 {[%clk 0:01:53.6]} 18. Rad1
{[%clk 0:01:28.6]} 18... Rad8 {[%clk 0:01:52.1]} 19. Rxd4 {[%clk 0:01:29.2]}
19... Rxd4 {[%clk 0:01:53.1]} 20. Bd3 {[%clk 0:01:26.7]} 20... Qd6 {[%clk
0:01:49.9]} 21. Qxe7 {[%clk 0:01:25.8]} 21... Qd7 {[%clk 0:01:31.8]} 22. Qxd7
{[%clk 0:01:21.1]} 22... Rxd7 {[%clk 0:01:32.2]} 23. f4 {[%clk 0:01:15.3]} 23...
c5 {[%clk 0:01:32.9]} 24. Kf2 {[%clk 0:01:16.2]} 24... Kg7 {[%clk 0:01:28.2]}
25. Re5 {[%clk 0:01:17]} 25... Rc7 {[%clk 0:00:29.5]} 26. Ke3 {[%clk 0:01:15.2]}
26... Kf6 {[%clk 0:00:29.2]} 27. g4 {[%clk 0:01:11.9]} 27... h6 {[%clk
0:00:27.2]} 28. h4 {[%clk 0:01:12.7]} 28... Kg7 {[%clk 0:00:26.2]} 29. g5 {[%clk
0:01:13.4]} 29... h5 {[%clk 0:00:26.5]} 30. f5 {[%clk 0:01:14.3]} 30... gxf5
{[%clk 0:00:25.1]} 31. Kf4 {[%clk 0:01:14.5]} 31... a5 {[%clk 0:00:19.3]} 32.
Kxf5 {[%clk 0:01:09.9]} 32... a4 {[%clk 0:00:20.3]} 33. bxa4 {[%clk 0:00:54.8]}
33... c4 {[%clk 0:00:21.3]} 34. Be4 {[%clk 0:00:55.8]} 34... Bc8+ {[%clk
0:00:22.3]} 35. Kf4 {[%clk 0:00:56]} 35... Be6 {[%clk 0:00:20.9]} 36. a5 {[%clk
0:00:56]} 36... c3 {[%clk 0:00:22.3]} 37. a6 {[%clk 0:00:54.8]} 37... Bxa2
{[%clk 0:00:22.9]} 38. Ra5 {[%clk 0:00:54.3]} 38... Bb1 {[%clk 0:00:14.4]} 39.
a7 {[%clk 0:00:54.1]} 39... Rc4 {[%clk 0:00:16.3]} 40. a8=Q {[%clk 0:00:52.4]}
40... Bxc2 {[%clk 0:00:18.2]} 41. Ke3 {[%clk 0:00:51.5]} 41... Bxe4 {[%clk
0:00:17.3]} 42. Qxe4 {[%clk 0:00:50.5]} 42... Rxe4+ {[%clk 0:00:17.5]} 43. Kxe4
{[%clk 0:00:51.5]} 43... c2 {[%clk 0:00:19.4]} 44. Rc5 {[%clk 0:00:52.4]} 44...
Kg6 {[%clk 0:00:19]} 45. Rc6+ {[%clk 0:00:52]} 45... f6 {[%clk 0:00:19.4]} 46.
Rxf6+ {[%clk 0:00:52.9]} 46... Kg7 {[%clk 0:00:20.4]} 47. Rc6 {[%clk 0:00:54.2]}
1-0

[Event "*** Titled Tuesday Blitz AM"]
[Site "Chess.com"]
[Date "2020.01.07"]
[Round "7"]
[White "Vuk2000"]
[Black "Gahan-MG"]
[Result "0-1"]
[WhiteElo "2663"]
[BlackElo "2498"]
[TimeControl "180+2"]
[EndTime "10:34:43 PST"]
[Termination "Gahan-MG won by resignation"]

1. e4 {[%clk 0:03:01.9]} 1... Nf6 {[%clk 0:03:00.9]} 2. Nc3 {[%clk 0:03:00.9]}
2... d5 {[%clk 0:03:01.9]} 3. exd5 {[%clk 0:03:00.7]} 3... Nxd5 {[%clk
0:03:03.2]} 4. Nf3 {[%clk 0:02:56.5]} 4... g6 {[%clk 0:03:03.9]} 5. Bc4 {[%clk
0:02:53.6]} 5... Be6 {[%clk 0:02:58]} 6. Nxd5 {[%clk 0:02:38.7]} 6... Bxd5
{[%clk 0:02:58.8]} 7. Qe2 {[%clk 0:02:40]} 7... Bg7 {[%clk 0:02:55.2]} 8. O-O
{[%clk 0:02:39.3]} 8... Nc6 {[%clk 0:02:53.8]} 9. c3 {[%clk 0:02:38]} 9... O-O
{[%clk 0:02:51.7]} 10. d4 {[%clk 0:02:35.3]} 10... e5 {[%clk 0:02:44.3]} 11.
Nxe5 {[%clk 0:02:20.8]} 11... Nxe5 {[%clk 0:02:43.4]} 12. dxe5 {[%clk
0:02:20.6]} 12... Bxc4 {[%clk 0:02:44.2]} 13. Qxc4 {[%clk 0:02:21.4]} 13... Bxe5
{[%clk 0:02:45.4]} 14. Qe4 {[%clk 0:01:58.3]} 14... Qd6 {[%clk 0:02:42.2]} 15.
f4 {[%clk 0:01:59.3]} 15... Bg7 {[%clk 0:02:36.3]} 16. Qxb7 {[%clk 0:01:59.9]}
16... Qc5+ {[%clk 0:02:34.1]} 17. Kh1 {[%clk 0:02:00]} 17... Rfd8 {[%clk
0:02:26.1]} 18. f5 {[%clk 0:01:53.2]} 18... Qxf5 {[%clk 0:02:21.4]} 19. Bf4
{[%clk 0:01:54.1]} 19... Rdb8 {[%clk 0:01:55.3]} 20. Qc6 {[%clk 0:01:46.2]}
20... Qb5 {[%clk 0:01:48.4]} 21. Qf3 {[%clk 0:01:31.1]} 21... Qxb2 {[%clk
0:01:19.6]} 22. Bxc7 {[%clk 0:01:28.5]} 22... Rf8 {[%clk 0:01:12.8]} 23. Ba5
{[%clk 0:00:33.4]} 23... f5 {[%clk 0:00:36.3]} 24. Bb4 {[%clk 0:00:25]} 24...
Rfe8 {[%clk 0:00:30.6]} 25. Qd5+ {[%clk 0:00:21.4]} 25... Kh8 {[%clk 0:00:31]}
26. Rae1 {[%clk 0:00:16.2]} 26... Rg8 {[%clk 0:00:15.7]} 27. Re7 {[%clk
0:00:12.8]} 27... a5 {[%clk 0:00:12.2]} 28. Bxa5 {[%clk 0:00:10.9]} 28... Rae8
{[%clk 0:00:05.7]} 29. Rxe8 {[%clk 0:00:06.7]} 29... Rxe8 {[%clk 0:00:07.6]} 30.
Qb3 {[%clk 0:00:07.7]} 30... Qe2 {[%clk 0:00:07.2]} 31. Rg1 {[%clk 0:00:07.9]}
31... Be5 {[%clk 0:00:06.8]} 32. Qf7 {[%clk 0:00:03.5]} 32... Bxh2 {[%clk
0:00:02.3]} 33. Qf6+ {[%clk 0:00:02.5]} 33... Kg8 {[%clk 0:00:03.4]} 34. Kxh2
{[%clk 0:00:03.8]} 34... Qh5+ {[%clk 0:00:04.2]} 35. Kg3 {[%clk 0:00:05]} 35...
Qg4+ {[%clk 0:00:05.6]} 36. Kh2 {[%clk 0:00:05.7]} 36... Qh5+ {[%clk 0:00:06.8]}
37. Kg3 {[%clk 0:00:07]} 37... Re3+ {[%clk 0:00:07.2]} 38. Kf4 {[%clk
0:00:08.1]} 38... Qh6+ {[%clk 0:00:07.1]} 0-1

[Event "*** Titled Tuesday Blitz AM"]
[Site "Chess.com"]
[Date "2020.01.07"]
[Round "7"]
[White "Oligan22"]
[Black "bhavesh1810"]
[Result "0-1"]
[WhiteElo "2451"]
[BlackElo "2051"]
[TimeControl "180+2"]
[EndTime "10:34:51 PST"]
[Termination "bhavesh1810 won by resignation"]

1. e4 {[%clk 0:03:01.9]} 1... c5 {[%clk 0:03:00.4]} 2. Ne2 {[%clk 0:03:01.5]}
2... Nc6 {[%clk 0:03:00.2]} 3. Nbc3 {[%clk 0:03:00.7]} 3... d6 {[%clk
0:03:00.4]} 4. h3 {[%clk 0:03:00]} 4... g6 {[%clk 0:03:01.3]} 5. g4 {[%clk
0:02:59.1]} 5... h5 {[%clk 0:03:01]} 6. g5 {[%clk 0:02:59.7]} 6... Bg7 {[%clk
0:03:01.9]} 7. Bg2 {[%clk 0:03:00.7]} 7... e6 {[%clk 0:03:03.3]} 8. d3 {[%clk
0:03:00.7]} 8... Nge7 {[%clk 0:03:04.3]} 9. f4 {[%clk 0:03:01.1]} 9... Qc7
{[%clk 0:03:05]} 10. Be3 {[%clk 0:03:00.7]} 10... Bd7 {[%clk 0:03:05.9]} 11. Qd2
{[%clk 0:02:59.2]} 11... a6 {[%clk 0:03:07.2]} 12. a4 {[%clk 0:02:59.5]} 12...
O-O-O {[%clk 0:03:06.7]} 13. Nc1 {[%clk 0:02:48.9]} 13... Nd4 {[%clk 0:03:07]}
14. Rb1 {[%clk 0:02:40.9]} 14... Bc6 {[%clk 0:03:05.2]} 15. b4 {[%clk
0:02:39.8]} 15... cxb4 {[%clk 0:02:57.3]} 16. Rxb4 {[%clk 0:02:39.3]} 16... e5
{[%clk 0:02:45.6]} 17. Bxd4 {[%clk 0:02:27.7]} 17... exd4 {[%clk 0:02:46.4]} 18.
Nb5 {[%clk 0:02:26.2]} 18... axb5 {[%clk 0:02:10.3]} 19. axb5 {[%clk 0:02:28.1]}
19... Bd5 {[%clk 0:02:11.3]} 20. exd5 {[%clk 0:02:26.9]} 20... Qb6 {[%clk
0:02:09.5]} 21. Nb3 {[%clk 0:02:14.7]} 21... Nf5 {[%clk 0:02:06.5]} 22. O-O
{[%clk 0:02:09.3]} 22... Ne3 {[%clk 0:02:06.6]} 23. Ra1 {[%clk 0:02:06.8]} 23...
Kd7 {[%clk 0:02:02.2]} 24. Be4 {[%clk 0:01:58.2]} 24... Ra8 {[%clk 0:01:58.8]}
25. Rba4 {[%clk 0:01:49.2]} 25... Rxa4 {[%clk 0:01:58.6]} 26. Rxa4 {[%clk
0:01:51.1]} 26... Rc8 {[%clk 0:01:59.7]} 27. Ra2 {[%clk 0:01:43.4]} 27... Qxb5
{[%clk 0:01:52.5]} 28. Qf2 {[%clk 0:01:22.1]} 28... Ke7 {[%clk 0:01:05.3]} 29.
f5 {[%clk 0:01:20.4]} 29... gxf5 {[%clk 0:01:06.7]} 30. Bxf5 {[%clk 0:01:21.7]}
30... Rb8 {[%clk 0:00:49.8]} 31. Be4 {[%clk 0:01:07.2]} 31... Be5 {[%clk
0:00:50.2]} 32. Qf3 {[%clk 0:00:54.9]} 32... Qb4 {[%clk 0:00:49.6]} 33. Kf2
{[%clk 0:00:51.8]} 33... Rc8 {[%clk 0:00:37.9]} 34. Qe2 {[%clk 0:00:35.5]} 34...
h4 {[%clk 0:00:34]} 35. Bf3 {[%clk 0:00:19.8]} 35... Bg3+ {[%clk 0:00:19.7]} 36.
Kg1 {[%clk 0:00:20]} 36... Be5 {[%clk 0:00:21.6]} 37. Bg4 {[%clk 0:00:20]} 37...
Qc3 {[%clk 0:00:19.3]} 38. Bxc8 {[%clk 0:00:20.1]} 38... Qxc8 {[%clk 0:00:21.2]}
39. Qf3 {[%clk 0:00:20.5]} 39... Nxc2 {[%clk 0:00:20.1]} 40. Qg4 {[%clk
0:00:18.8]} 40... Qc3 {[%clk 0:00:18.3]} 41. Na5 {[%clk 0:00:18.7]} 41... Qe1+
{[%clk 0:00:18.6]} 42. Kg2 {[%clk 0:00:19.2]} 42... Ne3+ {[%clk 0:00:19.9]} 43.
Kf3 {[%clk 0:00:20.6]} 43... Nxg4 {[%clk 0:00:20.1]} 44. Kxg4 {[%clk 0:00:22.3]}
44... Qg3+ {[%clk 0:00:20.9]} 45. Kh5 {[%clk 0:00:23.3]} 45... Bf4 {[%clk
0:00:21.9]} 46. Nc6+ {[%clk 0:00:21.9]} 46... bxc6 {[%clk 0:00:22.1]} 47. Ra7+
{[%clk 0:00:23.8]} 47... Kf8 {[%clk 0:00:23.8]} 48. Ra8+ {[%clk 0:00:24.4]}
48... Kg7 {[%clk 0:00:25.3]} 0-1